bitfinex/quotes_ETHUSD_20260131
["timestamp","ask_amount","ask_price","bid_price","bid_amount"]
[1769894665849,0.001,2397.1,2396.2,0.01267828]
[1769894666055,0.001,2397.1,2395.7,1.04353633]
[1769894666220,0.001,2397.1,2395.7,1.98398686]
[1769894666425,0.001,2397.1,2395.7,1.04353633]
[1769894667040,0.001,2397.1,2395.8,0.24624858]
[1769894667350,0.001,2397.1,2396.1,14.65160548]
[1769894667556,0.0822659,2397.5,2396.3,0.01267828]
[1769894667851,0.0822659,2397.5,2396.5,13.60824335]
[1769894668520,0.001,2396.9,2396.3,1.49105323]
[1769894668725,0.001,2396.9,2395.5,13.59556507]
[1769894668726,0.01267828,2396.7,2395.4,4.17463982]
[1769894669036,0.001,2396.9,2396.0,1.04339785]
[1769894669240,0.001,2396.9,2396.1,0.52170206]
[1769894669442,0.001,2396.9,2396.2,1.04331858]
[1769894670450,4.25333605,2397.5,2396.3,13.84181365]
[1769894670451,0.0822659,2397.5,2396.3,13.84181365]
[1769894670647,0.0822659,2397.5,2396.4,1.48978105]
[1769894670853,1.12504336,2397.5,2396.5,0.875]
[1769894671054,0.0822659,2397.5,2396.5,0.875]
[1769894671557,0.0822659,2397.5,2396.6,1.04314445]
[1769894672867,0.001,2397.8,2396.7,0.24624858]
[1769894673030,1.04364369,2397.8,2396.7,0.61034005]
[1769894673462,0.001,2397.8,2396.8,1.0430574]
[1769894673988,0.21872848,2398.4,2397.1,13.60824335]
[1769894674129,0.21872848,2398.4,2397.4,0.01267828]
[1769894674322,0.21872848,2398.4,2397.4,13.60824335]
[1769894674628,0.001,2398.4,2397.5,0.24624858]
[1769894674827,0.001,2398.4,2397.5,1.6329656]
[1769894675067,0.001,2398.4,2397.5,1.38671702]
[1769894675277,1.04336813,2398.4,2397.5,1.38671702]
[1769894675451,0.001,2398.4,2396.9,1.62555193]
[1769894675763,12.84414017,2398.4,2397.1,1.04292538]
[1769894676053,12.84414017,2398.4,2397.1,1.04290929]
[1769894676447,12.84414017,2398.4,2397.0,1.04294455]
[1769894676666,12.84414017,2398.4,2397.1,1.04292114]
[1769894677469,1.04240503,2398.3,2396.6,0.01267828]
[1769894677764,0.1024,2398.2,2396.6,1.04313803]
[1769894677973,13.72170532,2398.2,2396.6,1.04313803]
[1769894678173,0.1024,2398.2,2396.6,1.65221541]
[1769894678335,13.61930532,2398.1,2396.6,1.65221541]
[1769894678536,13.61930532,2397.5,2395.9,1.04342564]
[1769894678750,13.61930532,2397.5,2396.1,1.04335777]
[1769894679649,13.61930532,2396.3,2394.0,0.01267828]
[1769894679847,13.61930532,2396.3,2394.6,1.04401231]
[1769894679848,14.66266309,2396.1,2394.6,1.04401231]
[1769894680046,0.1024,2396.1,2394.4,0.01267828]
[1769894680447,0.72658877,2396.1,2394.4,0.01267828]
[1769894680646,0.1024,2396.1,2394.4,0.01267828]
[1769894680847,13.6319836,2396.0,2393.8,0.01267828]
[1769894681069,13.61930532,2396.0,2394.0,1.05695074]
[1769894681270,13.61930532,2396.0,2393.2,13.63673799]
[1769894681271,13.6319836,2395.6,2393.2,13.63673799]
[1769894681440,13.6319836,2395.6,2393.8,0.01267828]
[1769894681441,1.04362346,2395.5,2393.8,0.01267828]
[1769894681876,1.04362346,2395.5,2392.8,13.38067987]
[1769894681877,13.47734799,2395.1,2392.8,13.38067987]
[1769894682176,14.13745343,2395.1,2393.3,0.875]
[1769894682337,13.47734799,2395.1,2393.3,0.875]
[1769894682740,13.47734799,2395.1,2392.9,0.01267828]
[1769894682741,13.47734799,2394.8,2392.9,0.01267828]
[1769894682939,13.47734799,2394.8,2392.3,13.36910159]
[1769894682940,0.01267828,2394.3,2392.3,13.36910159]
[1769894683166,0.01267828,2394.3,2392.5,1.04489956]
[1769894683167,13.47734799,2394.3,2392.5,1.04489956]
[1769894683490,1.04432098,2393.9,2392.3,15.28909873]
[1769894683696,1.05699926,2393.9,2392.4,1.52890987]
[1769894683965,1.05699926,2393.9,2392.3,0.0011]
[1769894683966,0.01267828,2393.5,2392.3,0.0011]
[1769894684158,0.01267828,2393.6,2392.3,0.0011]
[1769894684670,0.11507828,2393.8,2392.3,0.0011]
[1769894685251,0.1024,2393.8,2392.3,0.0011]
[1769894685451,1.04440823,2393.7,2392.3,0.0011]
[1769894686075,0.01267828,2394.2,2392.3,0.0011]
[1769894686076,1.04414651,2394.4,2392.6,0.01267828]
[1769894686278,1.0439721,2394.7,2393.2,13.38067987]
[1769894686573,4.17491339,2395.3,2393.5,0.2335703]
[1769894686771,4.17491339,2395.3,2393.5,1.68376315]
[1769894687546,0.1024,2395.2,2393.5,1.68376315]
[1769894687745,4.17491339,2395.3,2393.8,0.01267828]
[1769894688379,4.17491339,2395.3,2393.6,14.42513174]
[1769894688380,4.18759167,2395.3,2393.6,1.04445187]
[1769894688558,4.18759167,2395.3,2393.7,0.66724522]
[1769894689081,17.66493966,2395.3,2393.7,0.66724522]
[1769894689658,4.17484239,2395.5,2393.8,1.0443646]
[1769894689872,0.1024,2395.4,2393.8,1.9193646]
[1769894690073,4.17484239,2395.5,2393.9,0.9226554]
[1769894690275,1.04331858,2396.2,2394.3,0.01267828]
[1769894690572,1.04331858,2396.2,2394.4,0.01267828]
[1769894690772,1.04331858,2396.2,2394.5,0.01267828]
[1769894690977,1.04331858,2396.2,2394.6,0.01267828]
[1769894691175,1.04331858,2396.2,2394.7,0.875]
[1769894691677,0.2177623,2396.1,2394.7,0.875]
[1769894691846,1.04340567,2396.0,2394.8,1.04392851]
[1769894692043,1.04340567,2396.0,2394.9,0.60946426]
[1769894692244,1.04340567,2396.0,2394.4,4.18894207]
[1769894692245,15.32082706,2395.9,2393.1,2.18130693]
[1769894692451,15.32082706,2395.9,2393.5,0.01267828]
[1769894692452,13.47734799,2394.0,2393.5,0.01267828]
[1769894692645,0.03803484,2393.2,2392.7,0.01267828]
[1769894692888,0.1024,2394.0,2393.0,0.01267828]
[1769894693091,0.1024,2394.0,2392.8,0.01267828]
[1769894693966,1.04432098,2393.9,2393.0,0.01267828]
[1769894694167,1.04432098,2393.9,2393.3,0.01267828]
[1769894694372,1.04425359,2394.1,2393.5,0.01267828]
[1769894694989,1.04425359,2394.1,2393.3,0.01267828]
[1769894694990,1.98406594,2394.1,2393.3,0.01267828]
[1769894695190,1.04425359,2394.1,2393.2,0.01267828]
[1769894695489,1.04425359,2394.1,2392.9,0.01267828]
[1769894695673,1.04425359,2394.1,2393.2,0.01267828]
[1769894695876,1.04425359,2394.1,2393.4,0.01267828]
[1769894696079,0.93981235,2394.1,2393.1,0.01267828]
[1769894696287,1.0440157,2394.6,2393.4,0.01267828]
[1769894696490,1.0440157,2394.6,2393.5,0.01267828]
[1769894696804,1.0440157,2394.6,2393.9,0.01267828]
[1769894697992,1.56602355,2394.6,2393.4,14.41253536]
[1769894698193,1.56602355,2394.6,2393.6,0.01267828]
[1769894698194,1.0440157,2394.6,2393.6,0.01267828]
[1769894698391,1.0440157,2394.6,2393.7,0.01267828]
[1769894698866,1.0440157,2394.6,2393.6,0.01267828]
[1769894699908,1.0440157,2394.6,2393.2,0.01267828]
[1769894699909,14.30135268,2394.5,2392.7,0.0011]
[1769894700117,0.1024,2394.2,2392.7,0.0011]
[1769894700400,1.04414651,2394.3,2392.9,13.36800159]
[1769894701404,4.2784628,2394.7,2393.5,13.38067987]
[1769894701405,0.1024,2394.7,2393.5,13.38067987]
[1769894701747,0.2178997,2395.8,2394.2,13.36800159]
[1769894701748,4.17427832,2395.7,2394.2,13.36800159]
[1769894701876,4.17427832,2395.7,2394.4,13.38067987]
[1769894702080,4.17427832,2395.7,2394.5,14.41206089]
[1769894702788,0.1024,2395.6,2394.1,0.875]
[1769894703107,0.1024,2395.6,2394.3,1.04412669]
[1769894703108,0.65747926,2395.6,2394.3,1.04412669]
[1769894703271,0.65747926,2395.6,2394.2,1.04415921]
[1769894703477,0.65747926,2395.6,2393.9,0.01267828]
[1769894703706,0.65747926,2395.6,2393.9,1.04431315]
[1769894704111,1.04362346,2395.5,2393.8,1.0443646]
[1769894704412,0.58755966,2395.4,2393.8,1.0443646]
[1769894704574,0.58755966,2395.4,2393.8,1.05704288]
[1769894705383,0.58755966,2395.4,2393.8,1.0443646]
[1769894706075,1.04371059,2395.3,2393.7,4.17757547]
[1769894706277,1.04371059,2395.3,2393.7,4.19025375]
[1769894706500,1.04371059,2395.3,2394.1,13.36800159]
[1769894706700,4.83182093,2395.6,2394.4,13.36800159]
[1769894706701,1.59866779,2395.6,2394.4,13.36800159]
[1769894706907,0.2178997,2395.8,2394.3,0.01267828]
[1769894706908,1.04356671,2395.7,2394.5,13.1905229]
[1769894707111,1.04356671,2395.7,2394.6,1.31905229]
[1769894707820,0.21803965,2396.3,2395.3,0.01267828]
[1769894707988,4.17186806,2397.1,2395.3,14.0655229]
[1769894708309,4.17186806,2397.1,2395.5,14.23414636]
[1769894708310,0.21773166,2396.7,2395.5,14.23414636]
[1769894708475,4.17148287,2397.3,2395.5,14.23414636]
[1769894708476,1.04288336,2397.2,2395.8,0.01267828]
[1769894708816,1.04288336,2397.2,2395.4,5.59499224]
[1769894708817,0.01267828,2396.4,2394.8,1.04390411]
[1769894708999,0.1024,2396.3,2394.2,13.1905229]
[1769894709176,0.01267828,2396.0,2393.9,1.04428623]
[1769894709379,0.1024,2396.1,2394.5,1.04405358]
[1769894709603,0.1024,2396.1,2394.4,0.01267828]
[1769894709803,0.1024,2396.4,2394.8,1.04389184]
[1769894710022,0.36096766,2396.4,2394.9,0.52197392]
[1769894710310,0.01267828,2395.9,2394.0,0.60724411]
[1769894710473,0.1024,2396.0,2394.1,1.04422353]
[1769894710673,0.11507828,2396.0,2394.1,1.04422353]
[1769894710908,0.01267828,2395.5,2393.8,0.83803905]
[1769894711081,0.01267828,2395.2,2393.5,0.875]
[1769894711287,0.1024,2395.3,2394.0,1.04427484]
[1769894711817,0.1024,2395.3,2393.9,1.04429318]
[1769894712651,0.1024,2395.1,2393.2,0.01267828]
[1769894712925,0.1024,2395.1,2393.5,1.04446391]
[1769894713094,0.1024,2395.1,2393.6,1.04445136]
[1769894713525,0.1024,2395.1,2393.5,1.04447095]
[1769894713718,0.1024,2395.1,2393.6,1.04441446]
[1769894713919,1.04375417,2395.2,2393.9,14.22214526]
[1769894714236,1.04375417,2395.2,2393.8,1.04435868]
[1769894714532,1.04375417,2395.2,2393.9,1.04430562]
[1769894714724,0.1024,2395.3,2393.8,4.19012918]
[1769894714905,0.94764334,2395.3,2393.9,0.57693988]
[1769894715933,0.84524334,2395.3,2394.0,0.01377828]
[1769894716833,1.04375417,2395.2,2394.0,0.0011]
[1769894717130,1.04375417,2395.2,2394.0,1.04536855]
[1769894717339,1.04362346,2395.5,2394.1,0.58120962]
[1769894717550,1.04362346,2395.5,2394.1,13.77173252]
[1769894717836,1.04362346,2395.5,2394.3,13.1905229]
[1769894718044,1.04344922,2395.9,2394.7,0.01267828]
[1769894718335,4.17312647,2396.3,2395.0,13.1905229]
[1769894718536,0.01267828,2396.0,2394.1,0.58120962]
[1769894718739,1.14593633,2395.7,2394.0,0.0011]
[1769894719841,1.14593633,2395.7,2394.0,0.01377828]
[1769894721135,1.14593633,2395.7,2394.1,1.04423374]
[1769894721530,1.14593633,2395.7,2394.2,13.1905229]
[1769894721724,1.04353633,2395.7,2394.4,0.01267828]
[1769894722221,1.04353633,2395.7,2394.4,13.1905229]
[1769894722918,1.04353633,2395.7,2394.4,13.17784462]
[1769894723335,4.17414534,2395.8,2394.5,1.0440593]
[1769894723648,4.17387216,2395.9,2394.8,13.17784462]
[1769894723833,4.17387216,2395.9,2394.9,1.31905229]
[1769894724518,4.17387216,2395.9,2394.7,0.01267828]
[1769894724519,4.17387216,2395.9,2394.5,1.0440593]
[1769894724867,4.17387216,2395.9,2394.4,1.04407105]
[1769894725152,4.17387216,2395.9,2394.4,1.04408818]
[1769894725462,4.17387216,2395.9,2394.6,1.0440157]
[1769894728049,4.17387216,2395.9,2394.5,1.0440267]
[1769894728239,0.53197214,2395.8,2394.6,0.61080534]
[1769894729428,0.53197214,2395.8,2394.6,1.48580534]
[1769894729623,0.67586694,2396.2,2394.8,13.17784462]
[1769894729835,1.04327504,2396.3,2395.1,13.1905229]
[1769894730151,1.04314445,2396.6,2395.4,13.1905229]
[1769894730339,4.17220332,2396.9,2395.5,14.51084302]
[1769894730542,1.26070137,2397.0,2395.9,13.17784462]
[1769894730734,1.26070137,2397.0,2396.0,14.05284462]
[1769894731638,1.26070137,2397.0,2396.2,13.17784462]
[1769894731639,1.26066832,2397.0,2396.2,13.17784462]
[1769894731836,1.04297095,2397.0,2396.2,14.58312908]
[1769894732043,1.04283986,2397.3,2396.3,1.04327504]
[1769894732648,1.04283986,2397.3,2396.3,1.91827504]
[1769894733858,1.04283986,2397.3,2395.7,1.04350538]
[1769894734061,0.60891993,2397.2,2395.7,1.04350538]
[1769894734641,0.60891993,2397.2,2395.7,1.91850538]
[1769894735041,0.60891993,2397.2,2395.7,15.09635]
[1769894735251,1.04283986,2397.3,2396.2,13.1905229]
[1769894735449,4.17135944,2397.4,2396.3,14.0655229]
[1769894735450,1.04282556,2397.4,2396.3,14.0655229]
[1769894735859,1.04282556,2397.4,2396.3,0.875]
[1769894736065,1.04282556,2397.4,2396.3,1.9182619]
[1769894737962,1.04282556,2397.4,2396.0,1.0433772]
[1769894738141,1.04282556,2397.4,2395.8,1.04349009]
[1769894738142,0.54316479,2397.3,2395.8,1.04349009]
[1769894738340,0.54316479,2397.3,2395.7,1.04353379]
[1769894738579,0.54316479,2397.3,2395.5,4.17446371]
[1769894738580,0.11507828,2397.0,2395.1,1.04376947]
[1769894738865,0.11507828,2397.0,2394.8,12.90642095]
[1769894738866,13.39241715,2396.9,2394.8,12.90642095]
[1769894739041,0.1024,2396.6,2394.8,1.0439075]
[1769894739247,13.49481715,2396.6,2394.8,1.0439075]
[1769894739557,13.49481715,2396.6,2394.4,4.17640554]
[1769894739558,0.11507828,2396.3,2394.4,0.875]
[1769894739742,0.11507828,2396.3,2394.6,1.04398568]
[1769894739743,0.1024,2396.3,2394.6,1.04398568]
[1769894739934,14.17174328,2396.3,2394.5,1.70828265]
[1769894740135,0.1024,2396.1,2394.3,1.91911819]
[1769894740460,0.1024,2396.1,2394.3,14.83821742]
[1769894740660,0.1024,2396.1,2394.3,13.95053914]
[1769894742264,0.1024,2395.9,2394.3,13.95053914]
[1769894742469,0.1024,2395.9,2394.5,12.6097019]
[1769894742470,0.64458284,2395.9,2394.5,12.6097019]
[1769894743167,1.04340567,2396.0,2394.7,12.6097019]
[1769894743542,4.17310957,2396.3,2394.9,12.62238018]
[1769894743743,4.17310957,2396.3,2395.1,12.62238018]
[1769894743977,1.04314445,2396.6,2395.3,12.6097019]
[1769894744173,1.04314445,2396.6,2395.4,13.95943992]
[1769894744339,0.1024,2396.5,2395.4,1.34973802]
[1769894744546,0.1024,2396.5,2395.2,0.875]
[1769894744742,0.1024,2396.5,2395.2,1.91872481]
[1769894744989,0.1024,2396.5,2395.3,1.04367477]
[1769894745179,0.1024,2396.5,2395.2,1.91872231]
[1769894745440,0.63421223,2396.5,2395.4,1.04366218]
[1769894745660,0.1024,2396.5,2395.3,2.91404057]
[1769894745866,0.1024,2396.5,2395.4,1.04366374]
[1769894746166,0.1024,2396.5,2395.3,1.87035838]
[1769894746367,0.1024,2396.5,2395.1,12.6097019]
[1769894746368,1.04323151,2396.4,2395.1,13.65347887]
[1769894746744,1.04323151,2396.4,2395.1,12.6097019]
[1769894747065,1.04323151,2396.4,2395.1,13.65349673]
[1769894747472,1.04323151,2396.4,2395.1,14.52849673]
[1769894748669,1.04323151,2396.4,2394.3,5.63756803]
[1769894748670,0.01267828,2396.3,2394.5,1.04401863]
[1769894748873,0.11507828,2396.2,2394.5,1.04401863]
[1769894749171,0.01267828,2395.9,2394.3,0.875]
[1769894749373,0.01267828,2396.1,2394.3,1.91912067]
[1769894749374,0.11507828,2396.1,2394.3,1.91912067]
[1769894749592,0.01267828,2396.0,2394.3,2.91478769]
[1769894749752,0.01267828,2396.0,2394.2,0.0011]
[1769894749753,0.1024,2395.6,2394.2,0.0011]
[1769894749949,0.01267828,2395.1,2393.8,0.0011]
[1769894750153,0.00229201,2395.0,2393.8,0.0011]
[1769894750881,0.1024,2394.9,2393.8,0.0011]
[1769894751066,0.00229201,2394.8,2393.8,0.0011]
[1769894751781,0.00229201,2394.8,2394.5,0.0011]
[1769894751971,0.00229201,2394.8,2393.8,0.0011]
[1769894752377,0.00229201,2394.8,2394.3,0.0011]
[1769894754476,1.04376461,2395.2,2394.3,12.6108019]
[1769894754677,1.04376461,2395.2,2394.4,1.34858019]
[1769894754989,0.1024,2395.7,2394.6,12.6097019]
[1769894755164,1.04332068,2396.2,2394.7,12.6097019]
[1769894756080,1.04332068,2396.2,2394.9,12.6097019]
[1769894756386,1.04332068,2396.2,2395.0,13.4847019]
[1769894756583,1.04314445,2396.6,2395.1,13.97085037]
[1769894756757,1.04314445,2396.6,2395.1,13.95817209]
[1769894756972,0.001,2397.0,2395.4,12.6097019]
[1769894757207,0.001,2397.0,2395.3,0.01267828]
[1769894757208,0.001,2397.0,2395.7,0.01267828]
[1769894757498,0.001,2397.0,2395.8,13.4847019]
[1769894758001,0.001,2397.0,2396.0,12.6097019]
[1769894758510,0.001,2397.1,2396.2,12.6097019]
[1769894759003,0.001,2397.1,2396.3,1.04327504]
[1769894759174,0.001,2397.1,2396.4,2.65760771]
[1769894760310,1.26053719,2397.5,2396.4,1.78260771]
[1769894760311,1.26053527,2397.5,2396.4,1.78260771]
[1769894760617,1.26053527,2397.5,2396.4,0.875]
[1769894760973,1.26053527,2397.5,2396.5,1.04318798]
[1769894761169,1.26052416,2397.5,2396.5,1.04318798]
[1769894761917,1.26052416,2397.5,2396.2,1.04328818]
[1769894762125,0.54314058,2397.4,2396.3,1.04326838]
[1769894762624,0.54314058,2397.4,2396.2,1.56499129]
[1769894762791,0.54314058,2397.4,2396.1,4.17343371]
[1769894762993,1.26052416,2397.5,2396.1,12.6097019]
[1769894763319,0.2177657,2397.5,2396.3,12.62238018]
[1769894763519,0.2177657,2397.5,2396.5,12.6097019]
[1769894763696,0.2177657,2397.5,2396.6,13.4847019]
[1769894764028,1.04355554,2398.0,2396.7,13.95817209]
[1769894764316,0.21798989,2397.8,2396.7,13.95817209]
[1769894764515,0.001,2397.3,2396.7,13.95817209]
[1769894764923,0.21798989,2397.8,2396.7,13.95817209]
[1769894765234,0.21798989,2397.8,2396.4,0.01267828]
[1769894765235,1.26061316,2397.8,2396.4,4.17288395]
[1769894765437,1.26061316,2397.8,2396.4,1.91819946]
[1769894765593,1.26061316,2397.8,2396.4,1.04321881]
[1769894765794,0.54437811,2397.7,2396.3,1.04324376]
[1769894766107,0.54437811,2397.7,2396.6,1.04311087]
[1769894766311,0.54437811,2397.7,2396.7,1.04309894]
[1769894766512,1.26061316,2397.8,2396.7,1.04309894]
[1769894766825,1.26061316,2397.8,2396.7,1.91809894]
[1769894767897,1.26061316,2397.8,2396.7,15.53660625]
[1769894767898,0.21798989,2397.8,2396.7,15.53660625]
[1769894768099,1.26062456,2397.8,2396.7,15.53660625]
[1769894768846,0.21798989,2397.8,2396.7,15.53660625]
[1769894769003,1.26061403,2397.8,2396.8,1.970901]
[1769894769430,1.26061403,2397.8,2396.8,1.04304907]
[1769894769599,1.04353932,2398.0,2396.9,0.875]
[1769894769800,1.04355502,2398.0,2396.8,14.66155638]
[1769894770018,0.001,2398.0,2396.9,0.875]
[1769894770204,0.001,2398.0,2397.0,1.55365564]
[1769894770205,1.04356931,2398.0,2397.0,1.55365564]
[1769894770420,0.001,2398.0,2397.0,1.55365564]
[1769894770597,0.001,2398.0,2397.0,15.18484123]
[1769894770800,0.001,2398.4,2397.4,13.61850731]
[1769894771012,0.001,2398.4,2397.5,2.23811856]
[1769894771013,1.04337268,2398.4,2397.5,2.23811856]
[1769894771207,1.04337268,2398.4,2397.6,1.04270937]
[1769894771208,0.001,2398.4,2397.6,1.04270937]
[1769894772606,5.04344766,2399.0,2397.6,1.04270937]
[1769894772607,1.04214811,2398.9,2397.8,13.61850731]
[1769894772804,1.04214811,2398.9,2397.9,14.98162587]
[1769894773113,0.21789365,2398.7,2398.1,1.04249197]
[1769894773507,0.21789365,2398.7,2397.7,1.04263984]
[1769894773508,1.26013854,2398.7,2397.7,1.04263984]
[1769894773713,1.26013854,2398.7,2398.0,1.04253322]
[1769894774007,0.21789365,2398.7,2398.0,1.04253322]
[1769894774407,1.26013423,2398.7,2396.8,0.60532747]
[1769894774645,1.27281251,2398.7,2397.1,1.04292471]
[1769894774933,0.01267828,2398.5,2396.9,5.21312402]
[1769894775233,1.04231811,2398.5,2397.2,1.04288336]
[1769894775438,1.04231811,2398.5,2397.3,0.874]
[1769894775439,0.53139906,2398.4,2397.3,0.874]
[1769894776223,0.001,2398.2,2397.3,0.874]
[1769894776611,0.001,2398.2,2397.4,4.17014178]
[1769894778833,0.001,2398.2,2397.4,5.21292283]
[1769894779040,0.001,2398.2,2397.5,0.60869228]
[1769894781435,1.04144969,2400.6,2398.6,0.2335703]
[1769894781770,4.16484762,2401.1,2399.5,0.01267828]
[1769894781771,0.21783447,2400.9,2399.5,0.01267828]
[1769894781935,0.54239149,2400.9,2399.7,0.01267828]
[1769894782139,0.54239149,2400.9,2399.8,0.874]
[1769894782458,0.54239149,2400.9,2399.4,0.01267828]
[1769894782459,12.94822044,2400.5,2398.3,0.01267828]
[1769894782662,1.29608987,2400.4,2398.8,0.01267828]
[1769894782830,1.04153647,2400.3,2398.9,1.04214431]
[1769894783254,1.04153647,2400.3,2399.0,4.17014178]
[1769894783465,0.63758015,2400.2,2399.1,0.52122861]
[1769894783636,2.33758951,2400.4,2399.2,0.874]
[1769894783958,4.16521864,2400.9,2399.2,5.04414178]
[1769894784279,0.50626604,2401.3,2400.0,0.01267828]
[1769894784280,0.27584542,2401.3,2400.0,0.01267828]
[1769894784428,0.55977434,2401.9,2400.2,0.01267828]
[1769894784429,1.04084266,2401.9,2400.2,0.01267828]
[1769894784629,14.76346382,2401.8,2400.2,1.45305421]
[1769894784828,14.76346382,2401.8,2400.3,5.04414178]
[1769894784829,12.94822044,2401.6,2400.3,5.04414178]
[1769894785028,12.94822044,2401.6,2400.3,0.874]
[1769894785242,12.94822044,2401.6,2400.4,0.874]
[1769894785442,1.81524338,2401.8,2400.4,0.88667828]
[1769894785631,1.25846357,2402.1,2400.9,0.01267828]
[1769894786038,1.25846357,2402.1,2401.0,5.04414178]
[1769894786258,1.25846357,2402.1,2401.0,0.874]
[1769894786452,0.5421392,2402.0,2401.0,0.874]
[1769894786662,0.5421392,2402.0,2400.5,0.50441418]
[1769894786859,13.9890631,2401.9,2400.6,5.04414178]
[1769894787072,13.9890631,2401.9,2400.7,0.874]
[1769894787380,1.58296992,2402.0,2400.8,0.01267828]
[1769894787541,1.58296992,2402.0,2400.9,0.01267828]
[1769894787741,0.5421392,2402.0,2401.1,0.01267828]
[1769894788067,0.5421392,2402.0,2401.0,0.01267828]
[1769894788068,1.25843976,2402.1,2401.0,4.18282006]
[1769894788241,1.04076141,2402.1,2401.1,0.88667828]
[1769894788440,0.001,2401.7,2401.1,0.88667828]
[1769894788647,0.001,2401.7,2400.5,1.05412414]
[1769894788952,0.001,2401.7,2400.7,0.88667828]
[1769894789169,0.001,2401.7,2400.9,0.01267828]
[1769894789661,0.001,2401.7,2401.0,0.01267828]
[1769894789980,0.001,2401.7,2401.2,0.01267828]
[1769894790450,0.001,2401.7,2401.3,4.17014178]
[1769894791983,0.001,2401.7,2400.4,1.04146575]
[1769894792146,12.94922044,2401.7,2400.6,4.17014178]
[1769894792487,12.94922044,2401.7,2400.7,0.873]
[1769894792849,1.04097268,2401.6,2400.8,4.17014178]
[1769894793256,12.94822044,2401.4,2399.6,0.01267828]
[1769894793458,12.94822044,2401.0,2399.6,0.01267828]
[1769894793664,12.94822044,2401.0,2399.7,0.873]
[1769894793861,13.05062044,2400.7,2399.5,0.01267828]
[1769894794064,13.05062044,2400.7,2399.2,0.01267828]
[1769894794065,12.94822044,2400.7,2399.6,0.873]
[1769894794276,1.17099947,2400.6,2399.6,0.873]
[1769894794763,1.04144969,2400.5,2399.6,0.873]
[1769894794952,1.04144969,2400.5,2399.6,1.91483319]
[1769894795157,1.04144969,2400.5,2399.6,0.873]
[1769894795374,0.6378248,2400.4,2399.6,0.873]
[1769894795676,0.6378248,2400.4,2399.2,0.01267828]
[1769894795677,0.6378248,2400.4,2399.2,1.0420056]
[1769894795975,0.6378248,2400.4,2398.6,0.01267828]
[1769894795976,0.6378248,2400.4,2399.6,1.91483223]
[1769894796176,0.6378248,2400.4,2399.6,0.873]
[1769894796970,1.04153647,2400.3,2399.6,0.873]
[1769894797147,0.58455072,2400.2,2399.3,1.04193402]
[1769894797351,0.58455072,2400.2,2399.4,1.91492482]
[1769894797576,0.58455072,2400.2,2399.5,1.04184623]
[1769894797775,1.04153647,2400.3,2399.5,1.04184623]
[1769894799810,4.16563754,2400.6,2399.5,1.054562]
[1769894800476,4.16563754,2400.6,2399.7,0.0011]
[1769894801065,4.16563754,2400.6,2399.8,0.873]
[1769894801485,1.04131956,2400.8,2399.8,0.873]
[1769894801789,0.41655223,2400.7,2399.8,0.873]
[1769894802288,1.04140631,2400.6,2399.9,1.05438835]
[1769894802482,1.45794646,2400.7,2399.9,1.05438835]
[1769894802689,1.04139423,2400.7,2399.9,1.05438835]
[1769894802857,13.79227351,2400.7,2399.7,0.0011]
[1769894803062,13.79227351,2400.7,2399.5,0.0011]
[1769894803282,12.75087928,2400.5,2399.6,0.873]
[1769894803470,12.75087928,2400.5,2399.7,0.873]
[1769894804069,12.75087928,2400.5,2399.5,0.0011]
[1769894804291,1.04149308,2400.4,2399.6,0.873]
[1769894804489,1.72178592,2400.4,2399.6,0.873]
[1769894804692,1.72178592,2400.4,2399.7,0.873]
[1769894806269,1.72178592,2400.4,2399.5,0.8741]
[1769894806470,1.72178592,2400.4,2399.5,1.91597626]
[1769894806471,1.79576867,2400.3,2399.5,1.91597626]
[1769894806676,1.04149308,2400.4,2399.5,0.8741]
[1769894807270,1.04149308,2400.4,2399.5,1.91597355]
[1769894807568,1.04136293,2400.7,2399.7,0.01267828]
[1769894807770,0.52066708,2400.6,2399.5,1.92865152]
[1769894808386,1.04144969,2400.5,2399.5,1.05565152]
[1769894808587,1.04144969,2400.5,2399.6,0.873]
[1769894809095,13.79232897,2400.5,2399.5,0.0011]
[1769894809389,13.79232897,2400.5,2399.5,0.8741]
[1769894809390,1.79581278,2400.4,2399.5,0.8741]
[1769894809595,1.79581278,2400.4,2398.6,0.01267828]
[1769894809596,12.75087928,2400.3,2398.6,0.01267828]
[1769894809764,12.75087928,2400.3,2398.8,1.04218607]
[1769894809967,12.75087928,2400.1,2399.1,1.04201926]
[1769894810282,13.79232897,2400.5,2399.2,1.04199023]
[1769894810599,13.79232897,2400.5,2399.1,4.16805627]
[1769894810895,13.79232897,2400.5,2399.0,1.04206869]
[1769894811095,1.79581278,2400.4,2399.0,1.05474697]
[1769894811401,14.54669206,2400.4,2399.0,1.04206869]
[1769894811569,14.54669206,2400.4,2399.0,1.05474697]
[1769894811775,1.79581278,2400.4,2399.4,0.01267828]
[1769894812095,1.0413498,2400.8,2399.8,0.01267828]
[1769894812318,13.79222908,2400.8,2398.9,18.45620656]
[1769894812475,13.79222908,2400.8,2398.5,2.91940075]
[1769894812476,12.76355756,2400.2,2398.5,0.0011]
[1769894812676,12.75087928,2400.0,2398.5,1.04339866]
[1769894812880,12.75087928,2400.0,2398.5,0.01377828]
[1769894813076,12.75087928,2400.0,2399.7,0.0011]
[1769894813375,13.43119689,2399.9,2399.5,0.0011]
[1769894814198,13.43119689,2399.9,2398.7,1.04219946]
[1769894814399,1.04175347,2399.8,2398.6,4.1690259]
[1769894814607,1.04175347,2399.8,2398.8,0.01267828]
[1769894814805,1.04168365,2400.0,2399.0,12.83930646]
[1769894814971,1.04149308,2400.4,2399.1,2.17087675]
[1769894815668,4.16511818,2400.9,2399.3,0.01267828]
[1769894815669,1.04131956,2400.8,2399.3,0.01267828]
[1769894815865,1.04131956,2400.8,2399.4,0.01267828]
[1769894816093,1.04131956,2400.8,2399.5,0.01267828]
[1769894816283,0.1024,2401.4,2399.5,0.01267828]
[1769894816284,0.1024,2401.4,2400.3,12.82662818]
[1769894816485,0.001,2401.7,2400.4,13.86812126]
[1769894816698,0.001,2401.7,2400.8,0.01267828]
[1769894816868,0.001,2401.7,2400.9,12.83930646]
[1769894817484,0.0822659,2402.3,2401.3,0.01267828]
[1769894817707,0.0822659,2402.3,2401.4,0.873]
[1769894818003,1.11766111,2403.3,2401.4,0.873]
[1769894818004,0.21757406,2403.1,2401.9,0.01267828]
[1769894818295,1.32996898,2403.3,2401.4,0.873]
[1769894818504,14.08084826,2403.3,2401.5,1.04101603]
[1769894818702,14.08084826,2403.3,2401.7,0.01267828]
[1769894819203,12.76355756,2403.1,2401.4,0.873]
[1769894819370,12.75087928,2403.1,2401.4,2.52191874]
[1769894820271,1.14830403,2403.4,2401.4,14.4755445]
[1769894820468,0.27530403,2403.4,2402.1,13.88006246]
[1769894820672,0.21753663,2403.8,2403.2,0.01267828]